[Event "Hungarian Youth-ch I 2024"]
[Site "Szolnok"]
[Date "2024.04.02"]
[Round "2.26"]
[White "Balazs, Sztella Anna"]
[Black "Karacsonyi, Luca"]
[Result "1-0"]
[ECO "C54"]
[WhiteElo "1805"]
[BlackElo "1956"]
[Annotator "RC"]
[PlyCount "73"]
[EventDate "2024.03.31"]
[EventType "swiss"]
[EventCountry "HUN"]
[SourceTitle "playchess.com"]
[Source "ChessBase"]
[SourceQuality "1"]
[TimeControl "5400+30"]

1. e4 {[%emt 0:00:01]} e5 {[%emt 0:00:08]} 2. Nf3 {[%emt 0:00:05]} Nc6 {[%emt 0:00:04]} 3. Bc4 {[%emt 0:00:06]} Bc5 {[%emt 0:00:05]} 4. c3 {[%emt 0:00:05]} Nf6 {[%emt 0:00:05]} 5. d3 {[%emt 0:00:04]} O-O {[%emt 0:00:06]} 6. O-O {[%emt 0:00:05]} d5 {[%emt 0:00:12]} 7. exd5 {[%emt 0:00:07]} Nxd5 {[%emt 0:00:06]} 8. Re1 {[%emt 0:00:38]} Bg4 {[%emt 0:00:11]} 9. Nbd2 {[%emt 0:00:17]} Nb6 {[%emt 0:00:12]} 10. h3 {[%emt 0:00:12]} Bh5 {[%emt 0:00:05]} 11. Bb3 {[%emt 0:00:10]} Qxd3 {[%emt 0:00:57]} 12. Nxe5 {[%emt 0:00:07]} Qf5 {[%emt 0:00:07]} 13. Nef3 {[%emt 0:00:11]} Rad8 {[%emt 0:00:18]} 14. Qe2 {[%emt 0:00:52]} Qc8 {[%emt 0:00:14]} 15. Ne4 {[%emt 0:04:03]} Rde8 {[%emt 0:12:06]} 16. Bf4 {[%emt 0:09:13]} Qf5 {[%emt 0:17:22]} 17. Bxc7 {[%emt 0:11:52]} Re7 {[%emt 0:17:02]} 18. Nh4 {[%emt 0:12:35]} Bxe2 {[%emt 0:09:06]} 19. Nxf5 {[%emt 0:00:08]} Rxe4 {[%emt 0:00:22]} 20. Ng3 {[%emt 0:00:09]} Rfe8 {[%emt 0:03:51]} 21. Nxe4 {[%emt 0:00:48]} Rxe4 {[%emt 0:00:07]} 22. Bc2 {[%emt 0:10:18]} Re6 {[%emt 0:03:08]} 23. Bf5 {[%emt 0:01:21]} Re7 {[%emt 0:04:29]} 24. b4 {[%emt 0:02:35]} Bxb4 {[%emt 0:03:55]} 25. cxb4 {[%emt 0:00:41]} Rxc7 {[%emt 0:01:10]} 26. Rxe2 {[%emt 0:00:16]} g6 {[%emt 0:00:07]} 27. Rc2 {[%emt 0:02:58]} Re7 {[%emt 0:01:57]} 28. Bg4 {[%emt 0:00:59]} Nxb4 {[%emt 0:01:04]} 29. Rb2 {[%emt 0:02:09]} Nd3 {[%emt 0:04:23]} 30. Rd2 {[%emt 0:01:44]} Ne5 {[%emt 0:04:00]} 31. Re2 {[%emt 0:08:13]} f5 {[%emt 0:02:58]} 32. Rae1 {[%emt 0:01:05]} fxg4 {[%emt 0:03:14]} 33. Rxe5 {[%emt 0:00:11]} Rxe5 {[%emt 0:00:11]} 34. Rxe5 {[%emt 0:00:04]} Kf7 {[%emt 0:02:54]} 35. Rc5 {[%emt 0:00:38]} Kf6 {[%emt 0:02:29]} 36. hxg4 {[%emt 0:00:25]} a6 {[%emt 0:00:26]} 37. Rc7 {[%emt 0:00:57]} 1-0

[Event "Hungarian Youth-ch I 2024"]
[Site "Szolnok"]
[Date "2024.04.02"]
[Round "2.27"]
[White "Toth, Timea"]
[Black "Beznicza, Mira"]
[Result "0-1"]
[ECO "C45"]
[WhiteElo "1978"]
[BlackElo "1801"]
[Annotator "RC"]
[PlyCount "98"]
[EventDate "2024.03.31"]
[EventType "swiss"]
[EventCountry "HUN"]
[SourceTitle "playchess.com"]
[Source "ChessBase"]
[SourceQuality "1"]
[TimeControl "5400+30"]

1. e4 {[%emt 0:00:02]} Nc6 {[%emt 0:00:07]} 2. d4 {[%emt 0:00:18]} e5 {[%emt 0:00:13]} 3. Nf3 {[%emt 0:00:11]} exd4 {[%emt 0:00:32]} 4. Nxd4 {[%emt 0:00:06]} Nf6 {[%emt 0:00:24]} 5. Nxc6 {[%emt 0:00:28]} bxc6 {[%emt 0:00:16]} 6. e5 {[%emt 0:08:41]} Qe7 {[%emt 0:00:38]} 7. Qe2 {[%emt 0:04:45]} Nd5 {[%emt 0:00:24]} 8. a3 {[%emt 0:06:54]} Qe6 {[%emt 0:06:42]} 9. Nd2 {[%emt 0:14:33]} Be7 {[%emt 0:24:53]} 10. Nf3 {[%emt 0:01:22]} O-O {[%emt 0:06:12]} 11. g3 {[%emt 0:01:58]} a5 {[%emt 0:14:06]} 12. Nd4 {[%emt 0:12:57]} Qg6 {[%emt 0:01:11]} 13. Qf3 {[%emt 0:03:47]} f6 {[%emt 0:04:17]} 14. Bd3 {[%emt 0:14:16]} Qe8 {[%emt 0:02:45]} 15. Qe4 {[%emt 0:03:29]} g6 {[%emt 0:03:36]} 16. O-O {[%emt 0:13:04]} Bc5 {[%emt 0:09:36]} 17. Nb3 {[%emt 0:07:33]} Ba7 {[%emt 0:04:46]} 18. c4 {[%emt 0:01:52]} Nb6 {[%emt 0:01:22]} 19. Bf4 {[%emt 0:03:05]} Qf7 {[%emt 0:05:31]} 20. exf6 {[%emt 0:00:24]} Re8 {[%emt 0:01:52]} 21. Qg2 {[%emt 0:00:36]} Nxc4 {[%emt 0:02:20]} 22. Bxc4 {[%emt 0:00:20]} Qxc4 {[%emt 0:00:17]} 23. Qf3 {[%emt 0:00:33]} Ba6 {[%emt 0:04:39]} 24. Rfe1 {[%emt 0:00:38]} Rf8 {[%emt 0:02:33]} 25. Bxc7 {[%emt 0:00:25]} a4 {[%emt 0:00:41]} 26. Nd2 {[%emt 0:00:36]} Qd4 {[%emt 0:00:30]} 27. Ne4 {[%emt 0:00:21]} d5 {[%emt 0:01:01]} 28. Rad1 {[%emt 0:00:34]} dxe4 {[%emt 0:01:48]} 29. Rxe4 {[%emt 0:00:34]} Rxf6 {[%emt 0:00:56]} 30. Rexd4 {[%emt 0:00:30]} Rxf3 {[%emt 0:00:05]} 31. Rd8+ {[%emt 0:00:32]} Rxd8 {[%emt 0:00:06]} 32. Rxd8+ {[%emt 0:00:03]} Kf7 {[%emt 0:00:06]} 33. Ra8 {[%emt 0:00:51]} Bxf2+ {[%emt 0:00:19]} 34. Kg2 {[%emt 0:00:08]} Be2 {[%emt 0:00:15]} 35. Rxa4 {[%emt 0:00:34]} Bc5 {[%emt 0:00:42]} 36. Ra5 {[%emt 0:00:53]} Rf2+ {[%emt 0:00:34]} 37. Kh3 {[%emt 0:00:31]} Bf1+ {[%emt 0:00:30]} 38. Kg4 {[%emt 0:00:06]} h5+ {[%emt 0:00:18]} 39. Kg5 {[%emt 0:00:33]} Be3+ {[%emt 0:01:00]} 40. Bf4 {[%emt 0:00:33]} Bxf4+ {[%emt 0:00:07]} 41. gxf4 {[%emt 0:00:02]} Rg2+ {[%emt 0:00:14]} 42. Kh6 {[%emt 0:00:16]} Rxb2 {[%emt 0:01:37]} 43. f5 {[%emt 0:00:54]} Bd3 {[%emt 0:00:17]} 44. fxg6+ {[%emt 0:00:49]} Bxg6 {[%emt 0:00:28]} 45. Rc5 {[%emt 0:00:32]} Be4 {[%emt 0:01:32]} 46. Rxh5 {[%emt 0:00:37]} Kf6 {[%emt 0:00:06]} 47. Rh4 {[%emt 0:00:31]} Rb8 {[%emt 0:00:32]} 48. Rf4+ {[%emt 0:00:40]} Bf5 {[%emt 0:00:09]} 49. Rxf5+ {[%emt 0:00:31]} Kxf5 {[%emt 0:00:13]} 0-1

[Event "Hungarian Youth-ch I 2024"]
[Site "Szolnok"]
[Date "2024.04.02"]
[Round "3.6"]
[White "Turcsanyi, Vince Gergo"]
[Black "Bodrogi, Bendeguz"]
[Result "1/2-1/2"]
[ECO "B15"]
[WhiteElo "2247"]
[BlackElo "2316"]
[Annotator "RC"]
[PlyCount "88"]
[EventDate "2024.03.31"]
[EventType "swiss"]
[EventCountry "HUN"]
[SourceTitle "playchess.com"]
[Source "ChessBase"]
[SourceQuality "1"]
[TimeControl "5400+30"]

1. e4 {[%emt 0:00:07]} c6 {[%emt 0:00:36]} 2. d4 {[%emt 0:00:10]} d5 {[%emt 0:00:10]} 3. Nc3 {[%emt 0:00:06]} dxe4 {[%emt 0:00:34]} 4. Nxe4 {[%emt 0:00:10]} Nf6 {[%emt 0:00:16]} 5. Nxf6+ {[%emt 0:00:19]} exf6 {[%emt 0:00:30]} 6. c3 {[%emt 0:00:17]} Bd6 {[%emt 0:00:10]} 7. Bd3 {[%emt 0:00:09]} O-O {[%emt 0:00:15]} 8. Qc2 {[%emt 0:00:12]} Re8+ {[%emt 0:00:10]} 9. Ne2 {[%emt 0:00:10]} h5 {[%emt 0:00:07]} 10. O-O {[%emt 0:00:27]} h4 {[%emt 0:00:39]} 11. h3 {[%emt 0:00:09]} Nd7 {[%emt 0:00:39]} 12. Bd2 {[%emt 0:01:01]} Nf8 {[%emt 0:00:31]} 13. Rae1 {[%emt 0:00:35]} g6 {[%emt 0:01:01]} 14. c4 {[%emt 0:00:58]} Be6 {[%emt 0:09:16]} 15. Kh1 {[%emt 0:02:06]} Rc8 {[%emt 0:04:02]} 16. Bc3 {[%emt 0:04:04]} Qd7 {[%emt 0:20:40]} 17. Ng1 {[%emt 0:02:49]} b5 {[%emt 0:01:41]} 18. b3 {[%emt 0:01:34]} Bb8 {[%emt 0:12:33]} 19. f4 {[%emt 0:07:59]} Qd6 {[%emt 0:04:44]} 20. Qf2 {[%emt 0:15:48]} bxc4 {[%emt 0:24:59]} 21. bxc4 {[%emt 0:00:48]} Bd7 {[%emt 0:01:34]} 22. c5 {[%emt 0:23:02]} Qd5 {[%emt 0:00:40]} 23. Qxh4 {[%emt 0:00:11]} Kg7 {[%emt 0:04:21]} 24. Nf3 {[%emt 0:01:59]} Rxe1 {[%emt 0:06:55]} 25. Rxe1 {[%emt 0:01:18]} Re8 {[%emt 0:00:27]} 26. Rxe8 {[%emt 0:06:15]} Bxe8 {[%emt 0:00:04]} 27. Nd2 {[%emt 0:00:13]} Nh7 {[%emt 0:04:25]} 28. Qe1 {[%emt 0:09:16]} Bd7 {[%emt 0:00:44]} 29. Bc4 {[%emt 0:01:17]} Qh5 {[%emt 0:00:52]} 30. Kg1 {[%emt 0:02:19]} Bxf4 {[%emt 0:00:46]} 31. Qe7 {[%emt 0:00:25]} Bf5 {[%emt 0:01:02]} 32. Bxf7 Qd1+ {[%emt 0:00:36]} 33. Kf2 {[%emt 0:04:28]} Kh6 {[%emt 0:00:15]} 34. Bb3 {[%emt 0:03:24]} Qc1 {[%emt 0:00:19]} 35. Bg8 {[%emt 0:03:04]} Bxd2 {[%emt 0:00:18]} 36. h4 {[%emt 0:02:20]} g5 {[%emt 0:00:57]} 37. Bxh7 {[%emt 0:00:08]} Bxh7 {[%emt 0:00:37]} 38. Qxf6+ {[%emt 0:00:23]} Kh5 {[%emt 0:00:33]} 39. Qe7 {[%emt 0:07:42]} Bd3 {[%emt 0:00:30]} 40. Qe8+ {[%emt 0:00:57]} Kg4 {[%emt 0:00:24]} 41. Qe6+ {[%emt 0:00:19]} Kh5 {[%emt 0:00:19]} 42. Qe8+ {[%emt 0:00:36]} Kh6 {[%emt 0:00:42]} 43. Qf8+ {[%emt 0:00:33]} Kg6 {[%emt 0:00:31]} 44. Qg8+ {[%emt 0:00:57]} Kh5 {[%emt 0:00:15]} 1/2-1/2

[Event "Hungarian Youth-ch I 2024"]
[Site "Szolnok"]
[Date "2024.04.02"]
[Round "3.7"]
[White "Kolimar, Kristof Pal"]
[Black "Szegedy, Matyas"]
[Result "1/2-1/2"]
[ECO "A62"]
[WhiteElo "2282"]
[BlackElo "2177"]
[Annotator "RC"]
[PlyCount "138"]
[EventDate "2024.03.31"]
[EventType "swiss"]
[EventCountry "HUN"]
[SourceTitle "playchess.com"]
[Source "ChessBase"]
[SourceQuality "1"]
[TimeControl "5400+30"]

1. d4 {[%emt 0:00:11]} Nf6 {[%emt 0:00:15]} 2. c4 {[%emt 0:00:12]} e6 {[%emt 0:00:31]} 3. Nc3 {[%emt 0:01:07]} c5 {[%emt 0:00:29]} 4. d5 {[%emt 0:00:21]} exd5 {[%emt 0:00:25]} 5. cxd5 {[%emt 0:00:07]} d6 {[%emt 0:00:11]} 6. g3 {[%emt 0:01:09]} g6 {[%emt 0:00:26]} 7. Bg2 {[%emt 0:00:17]} Bg7 {[%emt 0:00:37]} 8. Nf3 {[%emt 0:00:14]} O-O {[%emt 0:00:18]} 9. O-O {[%emt 0:00:03]} Re8 {[%emt 0:00:13]} 10. Bf4 {[%emt 0:00:05]} Na6 {[%emt 0:02:13]} 11. Re1 {[%emt 0:00:28]} Bg4 {[%emt 0:01:36]} 12. h3 {[%emt 0:00:14]} Bxf3 {[%emt 0:00:21]} 13. Bxf3 {[%emt 0:00:04]} Nd7 {[%emt 0:03:42]} 14. Ne4 {[%emt 0:00:45]} Ne5 {[%emt 0:00:35]} 15. Bg2 {[%emt 0:00:13]} Qe7 {[%emt 0:08:45]} 16. Rc1 {[%emt 0:04:07]} b5 {[%emt 0:14:13]} 17. a4 {[%emt 0:07:20]} Rab8 {[%emt 0:02:38]} 18. axb5 {[%emt 0:08:58]} Rxb5 {[%emt 0:00:32]} 19. Ra1 {[%emt 0:00:30]} Nb4 {[%emt 0:03:11]} 20. Nd2 {[%emt 0:03:55]} Reb8 {[%emt 0:19:11]} 21. Bxe5 {[%emt 0:02:00]} Bxe5 {[%emt 0:00:10]} 22. Nc4 {[%emt 0:00:12]} Bg7 {[%emt 0:02:03]} 23. Qd2 {[%emt 0:05:08]} h5 {[%emt 0:02:10]} 24. h4 {[%emt 0:02:36]} Rd8 {[%emt 0:07:02]} 25. e3 {[%emt 0:09:31]} Qd7 {[%emt 0:01:13]} 26. Kh2 {[%emt 0:02:10]} Rb7 {[%emt 0:05:01]} 27. Ra5 {[%emt 0:03:51]} Bh6 {[%emt 0:09:29]} 28. Bh3 {[%emt 0:10:25]} Qe8 {[%emt 0:00:25]} 29. b3 {[%emt 0:01:32]} Qe4 {[%emt 0:06:42]} 30. Bg2 {[%emt 0:00:28]} Qd3 {[%emt 0:01:33]} 31. Qxd3 {[%emt 0:10:08]} Nxd3 {[%emt 0:00:00]} 32. Re2 {[%emt 0:00:03]} Rxb3 {[%emt 0:05:46]} 33. Rxa7 {[%emt 0:00:24]} Rb4 {[%emt 0:00:09]} 34. Na5 {[%emt 0:03:30]} Ra4 {[%emt 0:00:47]} 35. Nc6 {[%emt 0:00:15]} Rxa7 {[%emt 0:00:09]} 36. Nxa7 {[%emt 0:00:04]} Ra8 {[%emt 0:00:59]} 37. Nb5 {[%emt 0:04:49]} Ra6 {[%emt 0:01:43]} 38. f4 {[%emt 0:04:23]} Bg7 {[%emt 0:02:39]} 39. e4 {[%emt 0:03:48]} Rb6 {[%emt 0:00:08]} 40. Na3 {[%emt 0:00:08]} Rb4 {[%emt 0:00:16]} 41. Rd2 {[%emt 0:01:15]} Nc1 {[%emt 0:01:15]} 42. e5 {[%emt 0:01:38]} Nb3 {[%emt 0:00:20]} 43. Re2 {[%emt 0:00:43]} Nd4 {[%emt 0:00:36]} 44. Re4 {[%emt 0:00:59]} Bf8 {[%emt 0:00:27]} 45. e6 {[%emt 0:00:24]} fxe6 {[%emt 0:00:20]} 46. dxe6 {[%emt 0:00:29]} Be7 {[%emt 0:00:05]} 47. Re3 {[%emt 0:01:14]} Kg7 {[%emt 0:00:10]} 48. Bd5 {[%emt 0:00:37]} Rb2+ {[%emt 0:01:01]} 49. Kg1 {[%emt 0:00:23]} Nf5 {[%emt 0:00:24]} 50. Rd3 {[%emt 0:00:56]} Re2 {[%emt 0:01:16]} 51. Nc4 {[%emt 0:00:53]} Rc2 {[%emt 0:00:38]} 52. Na3 {[%emt 0:05:24]} Re2 {[%emt 0:00:13]} 53. Nc4 {[%emt 0:00:02]} Bf6 {[%emt 0:00:49]} 54. Kf1 {[%emt 0:01:30]} Rc2 {[%emt 0:00:08]} 55. Rb3 {[%emt 0:01:21]} Ne7 {[%emt 0:00:44]} 56. Rb7 {[%emt 0:01:11]} Kg8 {[%emt 0:00:18]} 57. Nb6 {[%emt 0:02:25]} Rb2 {[%emt 0:00:28]} 58. Nd7 {[%emt 0:00:42]} Rxb7 {[%emt 0:00:15]} 59. Nxf6+ {[%emt 0:00:01]} Kg7 {[%emt 0:00:09]} 60. Nxh5+ {[%emt 0:00:23]} gxh5 {[%emt 0:00:04]} 61. Bxb7 {[%emt 0:00:01]} d5 {[%emt 0:00:29]} 62. Kf2 {[%emt 0:01:41]} Kf6 {[%emt 0:00:08]} 63. g4 {[%emt 0:00:02]} hxg4 {[%emt 0:01:04]} 64. Kg3 {[%emt 0:00:00]} Kxe6 {[%emt 0:00:39]} 65. Kxg4 {[%emt 0:00:01]} Kf6 {[%emt 0:00:07]} 66. h5 {[%emt 0:00:37]} c4 {[%emt 0:00:08]} 67. Kf3 {[%emt 0:01:54]} Kg7 {[%emt 0:00:54]} 68. f5 {[%emt 0:00:56]} c3 {[%emt 0:01:21]} 69. Ke2 {[%emt 0:00:03]} Nxf5 {[%emt 0:00:37]} 1/2-1/2

[Event "Hungarian Youth-ch I 2024"]
[Site "Szolnok"]
[Date "2024.04.02"]
[Round "3.8"]
[White "Herczeg, Marcell"]
[Black "Foldes, Marton Gabor"]
[Result "0-1"]
[ECO "B03"]
[WhiteElo "2107"]
[BlackElo "2162"]
[Annotator "RC"]
[PlyCount "82"]
[EventDate "2024.03.31"]
[EventType "swiss"]
[EventCountry "HUN"]
[SourceTitle "playchess.com"]
[Source "ChessBase"]
[SourceQuality "1"]
[TimeControl "5400+30"]

1. e4 {[%emt 0:00:16]} Nf6 {[%emt 0:00:19]} 2. e5 {[%emt 0:04:04]} Nd5 {[%emt 0:00:05]} 3. c4 {[%emt 0:00:25]} Nb6 {[%emt 0:00:05]} 4. d4 {[%emt 0:00:12]} d6 {[%emt 0:00:05]} 5. exd6 {[%emt 0:00:10]} cxd6 {[%emt 0:00:08]} 6. Nc3 {[%emt 0:01:38]} g6 {[%emt 0:00:12]} 7. Be3 {[%emt 0:00:57]} Bg7 {[%emt 0:00:06]} 8. Qd2 {[%emt 0:04:31]} Bf5 {[%emt 0:23:44]} 9. Bh6 {[%emt 0:13:52]} Bxh6 {[%emt 0:15:58]} 10. Qxh6 {[%emt 0:00:09]} Nc6 {[%emt 0:00:51]} 11. Nf3 {[%emt 0:04:29]} Nb4 {[%emt 0:04:27]} 12. O-O-O {[%emt 0:02:25]} Qc7 {[%emt 0:27:22]} 13. b3 {[%emt 0:15:12]} N6d5 {[%emt 0:05:50]} 14. Nxd5 {[%emt 0:02:04]} Nxd5 {[%emt 0:00:06]} 15. Kb2 {[%emt 0:03:21]} a5 {[%emt 0:04:00]} 16. Bd3 {[%emt 0:08:20]} Bxd3 {[%emt 0:00:36]} 17. Rxd3 {[%emt 0:00:19]} Nb4 {[%emt 0:00:30]} 18. Rc3 {[%emt 0:02:13]} O-O-O {[%emt 0:06:06]} 19. a3 {[%emt 0:06:46]} Nc6 {[%emt 0:02:36]} 20. d5 {[%emt 0:04:21]} Na7 {[%emt 0:03:54]} 21. Re1 {[%emt 0:01:40]} Kb8 {[%emt 0:00:32]} 22. Qf4 {[%emt 0:04:48]} Rhf8 {[%emt 0:00:58]} 23. Qh4 {[%emt 0:01:39]} Rde8 {[%emt 0:02:41]} 24. Nd4 {[%emt 0:00:36]} Qc5 {[%emt 0:00:44]} 25. Re4 {[%emt 0:08:41]} e5 {[%emt 0:00:27]} 26. dxe6 {[%emt 0:01:08]} fxe6 {[%emt 0:00:01]} 27. f3 {[%emt 0:08:05]} e5 {[%emt 0:00:37]} 28. Nc2 {[%emt 0:00:02]} Rf7 {[%emt 0:00:41]} 29. Ne3 {[%emt 0:01:40]} Nc6 {[%emt 0:00:24]} 30. Rd3 {[%emt 0:00:16]} Nd4 {[%emt 0:00:24]} 31. Rdxd4 {[%emt 0:00:29]} Rf4 {[%emt 0:00:52]} 32. Qe1 {[%emt 0:00:49]} Qxd4+ {[%emt 0:00:33]} 33. Rxd4 {[%emt 0:00:43]} exd4 {[%emt 0:00:02]} 34. Qd2 {[%emt 0:00:38]} dxe3 {[%emt 0:00:24]} 35. Qxd6+ {[%emt 0:00:19]} Ka8 {[%emt 0:00:05]} 36. Qd7 {[%emt 0:00:21]} Rff8 {[%emt 0:01:03]} 37. Qb5 {[%emt 0:00:42]} e2 {[%emt 0:00:34]} 38. Qxa5+ {[%emt 0:00:04]} Kb8 {[%emt 0:00:04]} 39. Qe1 {[%emt 0:00:08]} Rf7 {[%emt 0:00:16]} 40. Qg3+ {[%emt 0:00:40]} Rc7 {[%emt 0:00:26]} 41. Qe1 {[%emt 0:00:07]} Rd7 0-1

[Event "Hungarian Youth-ch I 2024"]
[Site "Szolnok"]
[Date "2024.04.02"]
[Round "3.9"]
[White "Gergely, Daniel"]
[Black "Megyaszai, Balazs"]
[Result "1/2-1/2"]
[ECO "D35"]
[WhiteElo "2230"]
[BlackElo "2029"]
[Annotator "RC"]
[PlyCount "114"]
[EventDate "2024.03.31"]
[EventType "swiss"]
[EventCountry "HUN"]
[SourceTitle "playchess.com"]
[Source "ChessBase"]
[SourceQuality "1"]
[TimeControl "5400+30"]

1. d4 {[%emt 0:00:35]} d5 {[%emt 0:01:05]} 2. c4 {[%emt 0:00:15]} e6 {[%emt 0:00:19]} 3. Nc3 {[%emt 0:00:15]} Nf6 {[%emt 0:00:10]} 4. cxd5 {[%emt 0:00:41]} exd5 {[%emt 0:00:51]} 5. Bg5 {[%emt 0:00:16]} c6 {[%emt 0:00:14]} 6. e3 {[%emt 0:00:23]} h6 {[%emt 0:01:55]} 7. Bh4 {[%emt 0:02:22]} Bf5 {[%emt 0:02:44]} 8. Qf3 {[%emt 0:03:34]} Bh7 {[%emt 0:04:35]} 9. Bxf6 {[%emt 0:00:52]} Qxf6 {[%emt 0:00:10]} 10. Qxf6 {[%emt 0:00:15]} gxf6 11. f4 {[%emt 0:03:15]} Bf5 {[%emt 0:10:05]} 12. Nf3 {[%emt 0:02:31]} Bd6 {[%emt 0:03:47]} 13. Kf2 {[%emt 0:01:28]} a5 {[%emt 0:13:00]} 14. Nh4 {[%emt 0:04:40]} Bd7 {[%emt 0:05:01]} 15. Bd3 {[%emt 0:04:46]} Na6 {[%emt 0:06:40]} 16. Rac1 {[%emt 0:11:07]} Nc7 {[%emt 0:07:55]} 17. Rhf1 {[%emt 0:06:26]} Rg8 {[%emt 0:05:01]} 18. Na4 {[%emt 0:04:34]} Rd8 {[%emt 0:02:22]} 19. a3 {[%emt 0:07:43]} Kf8 {[%emt 0:02:46]} 20. b4 {[%emt 0:14:24]} axb4 {[%emt 0:14:56]} 21. axb4 {[%emt 0:00:10]} Ke7 {[%emt 0:02:29]} 22. Nc5 {[%emt 0:03:04]} Bxc5 {[%emt 0:01:24]} 23. bxc5 {[%emt 0:00:56]} Ra8 {[%emt 0:00:59]} 24. Ra1 {[%emt 0:15:26]} Rxa1 {[%emt 0:03:09]} 25. Rxa1 {[%emt 0:00:05]} Ra8 {[%emt 0:00:24]} 26. Rxa8 {[%emt 0:06:51]} Nxa8 {[%emt 0:00:25]} 27. Kf3 {[%emt 0:03:40]} b6 {[%emt 0:00:38]} 28. cxb6 {[%emt 0:01:54]} Nxb6 {[%emt 0:00:29]} 29. Bf5 {[%emt 0:01:06]} Be6 {[%emt 0:01:40]} 30. g4 {[%emt 0:00:47]} Nc4 {[%emt 0:02:15]} 31. h3 {[%emt 0:01:03]} Kd6 {[%emt 0:02:49]} 32. Bd3 {[%emt 0:00:26]} Nb2 {[%emt 0:01:10]} 33. Be2 {[%emt 0:00:31]} c5 {[%emt 0:00:54]} 34. dxc5+ {[%emt 0:00:06]} Kxc5 {[%emt 0:00:05]} 35. f5 {[%emt 0:00:59]} Bd7 {[%emt 0:01:05]} 36. Ng2 {[%emt 0:00:15]} d4 {[%emt 0:02:05]} 37. exd4+ {[%emt 0:00:25]} Kxd4 {[%emt 0:00:08]} 38. Nf4 {[%emt 0:00:12]} Bc6+ {[%emt 0:01:19]} 39. Kg3 {[%emt 0:00:18]} Ke5 {[%emt 0:00:28]} 40. Nh5 {[%emt 0:01:17]} Bd5 {[%emt 0:00:32]} 41. Nf4 {[%emt 0:00:11]} Bc6 {[%emt 0:00:35]} 42. h4 {[%emt 0:00:30]} Bd5 {[%emt 0:01:04]} 43. Nxd5 {[%emt 0:00:25]} Kxd5 {[%emt 0:00:09]} 44. Bb5 {[%emt 0:00:16]} Kd6 {[%emt 0:00:21]} 45. Kf4 {[%emt 0:01:03]} Nd1 {[%emt 0:00:30]} 46. Be2 {[%emt 0:00:31]} Nc3 {[%emt 0:00:07]} 47. Bc4 {[%emt 0:00:04]} Ke7 {[%emt 0:00:36]} 48. Ke3 {[%emt 0:00:15]} Na4 {[%emt 0:00:06]} 49. Kd4 {[%emt 0:00:26]} Nb6 {[%emt 0:00:09]} 50. Bb5 {[%emt 0:00:47]} Nd7 {[%emt 0:00:44]} 51. Bxd7 {[%emt 0:00:12]} Kxd7 {[%emt 0:00:11]} 52. Ke4 {[%emt 0:01:02]} Kc6 {[%emt 0:00:43]} 53. Kf4 {[%emt 0:00:20]} Kd5 {[%emt 0:00:14]} 54. g5 {[%emt 0:00:18]} fxg5+ {[%emt 0:01:58]} 55. hxg5 {[%emt 0:00:09]} hxg5+ {[%emt 0:00:03]} 56. Kxg5 {[%emt 0:00:08]} Ke5 {[%emt 0:00:07]} 57. Kg4 {[%emt 0:00:47]} f6 {[%emt 0:00:12]} 1/2-1/2

[Event "Hungarian Youth-ch I 2024"]
[Site "Szolnok"]
[Date "2024.04.02"]
[Round "3.10"]
[White "Csernyik, Mark"]
[Black "Blake-Gyeresy, Alfred"]
[Result "1-0"]
[ECO "B90"]
[WhiteElo "2016"]
[BlackElo "1771"]
[Annotator "RC"]
[PlyCount "35"]
[EventDate "2024.03.31"]
[EventType "swiss"]
[EventCountry "HUN"]
[SourceTitle "playchess.com"]
[Source "ChessBase"]
[SourceQuality "1"]
[TimeControl "5400+30"]

1. e4 {[%emt 0:00:06]} c5 {[%emt 0:00:16]} 2. Nf3 {[%emt 0:00:26]} d6 {[%emt 0:00:07]} 3. d4 {[%emt 0:00:04]} cxd4 {[%emt 0:00:04]} 4. Nxd4 {[%emt 0:00:06]} Nf6 {[%emt 0:00:05]} 5. Nc3 {[%emt 0:00:05]} a6 {[%emt 0:00:04]} 6. f3 {[%emt 0:00:20]} e5 {[%emt 0:00:15]} 7. Nb3 {[%emt 0:00:07]} Be6 {[%emt 0:00:19]} 8. Be3 {[%emt 0:00:46]} Be7 {[%emt 0:00:48]} 9. Qd2 {[%emt 0:00:13]} Nbd7 {[%emt 0:00:59]} 10. O-O-O {[%emt 0:00:47]} Qc7 {[%emt 0:01:25]} 11. g4 {[%emt 0:00:20]} h6 {[%emt 0:01:04]} 12. h4 {[%emt 0:00:56]} b5 {[%emt 0:03:48]} 13. Nd5 {[%emt 0:04:22]} Bxd5 {[%emt 0:00:12]} 14. exd5 {[%emt 0:00:11]} Nb6 {[%emt 0:00:31]} 15. Bxb6 {[%emt 0:02:20]} Qxb6 {[%emt 0:00:06]} 16. Bd3 {[%emt 0:01:31]} Rc8 {[%emt 0:07:43]} 17. g5 {[%emt 0:05:44]} Nxd5 {[%emt 0:01:55]} 18. Bf5 {[%emt 0:00:22]} 1-0